Cogmind - Beta 11 X2 *** ADVENTURER MODE // 2021.02.28 @ 07:39:32 Player: Luigi Panache Result: Destroyed by H-77 Assassin with High-powered Shotgun Performance ------------- Evolutions (7) 3500 Regions Visited (26) 5200 Robots Destroyed (316) 1580 Value Destroyed (14557) 14557 Prototype IDs (50) 1000 Alien Tech Used (2) 400 Bonus (7064) 7064 TOTAL SCORE: 33301 Bonus ------- High Alert Combat Kills 611 Follower Combat Kills 3781 Network Hubs Disabled 200 Met Imprinter 300 Was Imprinted 300 Met Zhirov 300 Met Warlord at Base 500 MAIN.C Attacked Warlord 500 Warlord Defense Kill 628 Met R17 at Cetus 500 Friendly Fire -556 Cogmind --------- Core Integrity 0/1300 Matter 126/300 Energy 100/100 System Corruption 4% Temperature Cool (0) Movement Core (50) Location -3/Research Parts ------- > --- POWER (2) -------- (None) > --- PROPULSION (4) --- Compact Wheel > --- UTILITY (13) ----- (None) > --- WEAPON (2) ------- (None) > --- INVENTORY (5) ---- Heavy Assault Rifle Micro-nuke Launcher Remote Datajack Dirty Bomb Trap Dirty Bomb Trap Peak State ------------ > --- POWER ------------ Micro Fission Core Light Antimatter Reactor > --- PROPULSION ------- Myomer Leg Myomer Leg Myomer Leg Myomer Leg > --- UTILITY ---------- Advanced Heat Sink Cargo Storage Unit Inertial Stasis Machine Advanced Sensor Array Advanced Targeting Computer Advanced Armor Integrity Analyzer Improved Particle Charger Improved Medium Armor Plating Advanced Drone Bay > --- WEAPON ----------- Guided EMP Blaster > --- INVENTORY -------- Micro Fission Core Micro Fission Core Myomer Leg Myomer Leg Huge Storage Unit Makeshift Salvage Targeting Computer Improved Particle Charger Improved Particle Charger Transdimensional Reconstructor Pulse Rifle Wave Gun Dispersion Rifle Long-range Proton Cannon Long-range Proton Cannon Long-range Proton Cannon Heavy Assault Rifle Enhanced Autogun Enhanced Autogun Flak Gun Improved KE Penetrator Hypervelocity Gauss Cannon Precision Grenade Launcher Micro-nuke Launcher Remote Datajack Molecular Deconstructor Impact Mace Force Lance Force Lance [Rating: 121] Favorites ----------- Power Micro Fission Core Engine Makeshift Power Source Power Core Micro Fission Core Reactor Zionite Heavy DM Reactor Propulsion Myomer Leg Treads Medium Treads Leg Myomer Leg Wheel Compact Wheel Utility Advanced Targeting Computer Device Advanced Heat Sink Storage Cargo Storage Unit Processor Advanced Targeting Computer Hackware Experimental Hacking Suite Protection Centrium Medium Armor Plating Weapon Precision Beam Rifle Energy Gun Precision Beam Rifle Energy Cannon Cooled Particle Cannon Ballistic Gun Flak Gun Ballistic Cannon Hypervelocity Gauss Cannon Launcher Shock Bomb Launcher Special Weapon Remote Datajack Impact Weapon Impact Mace Build | -11 -10 -10 -10 -9 -8 -7 -7 -7 -7 -6 -6 -6 -6 -6 -6 -5 -5 -5 -5 -4 -4 -4 -4 -4 -3 -3 ------- Run | Scr Mat Min Exi Min Mat Fac Low Low Zio Pro Fac Ext Cet Arc Hub Fac Upp Upp Zhi Pro Fac Upp Upp War Pro Res Slots Evolved 14 | . . . . . 4 2 . . . . 2 . . . . 2 . . . . 2 . . . . 2 Power 1 | . . . . . . . . . . . 1 . . . . . . . . . . . . . . . Propulsion 2 | . . . . . 1 . . . . . . . . . . 1 . . . . . . . . . . Utility 11 | . . . . . 3 2 . . . . 1 . . . . 1 . . . . 2 . . . . 2 Weapon . | . . . . . . . . . . . . . . . . . . . . . . . . . . . Parts Attached 310 | 2 8 3 3 . 21 36 4 4 6 1 26 13 23 2 16 24 6 3 7 3 48 5 7 5 5 29 Power 38 | . 1 1 . . 1 3 1 . 1 . 4 . 6 . 5 3 1 . 1 . 3 1 2 . . 4 Engine 3 | . 1 . . . . . . . 1 . . . . . . . 1 . . . . . . . . . Core 16 | . . 1 . . 1 3 1 . . . 2 . 1 . 1 2 . . . . 2 . 1 . . 1 Reactor 19 | . . . . . . . . . . . 2 . 5 . 4 1 . . 1 . 1 1 1 . . 3 Propulsion 51 | 2 . 1 2 . 1 6 1 1 . 1 3 3 4 . 1 5 1 1 . . 9 2 4 . . 3 Treads 16 | 2 . 1 . . . . . . . . . . 4 . 1 5 . 1 . . 2 . . . . . Leg 13 | . . . . . . . . . . . . . . . . . . . . . 5 2 4 . . 2 Wheel 22 | . . . 2 . 1 6 1 1 . 1 3 3 . . . . 1 . . . 2 . . . . 1 Hover . | . . . . . . . . . . . . . . . . . . . . . . . . . . . Flight . | . . . . . . . . . . . . . . . . . . . . . . . . . . . Utility 93 | . 3 1 1 . 7 13 . . 5 . 5 . 8 2 5 6 . 1 6 3 14 2 1 . 3 7 Device 31 | . 1 1 . . 3 3 . . . . . . 1 . 1 1 . . 3 1 7 2 . . 2 5 Storage 11 | . 1 . 1 . 1 1 . . . . 1 . 2 . . . . . . . 2 . . . 1 1 Processor 11 | . . . . . 2 2 . . 2 . 2 . . . . . . . . 2 . . . . . 1 Hackware 2 | . . . . . . . . . 2 . . . . . . . . . . . . . . . . . Protection 38 | . 1 . . . 1 7 . . 1 . 2 . 5 2 4 5 . 1 3 . 5 . 1 . . . Artifact . | . . . . . . . . . . . . . . . . . . . . . . . . . . . Weapon 128 | . 4 . . . 12 14 2 3 . . 14 10 5 . 5 10 4 1 . . 22 . . 5 2 15 Energy Gun 30 | . 4 . . . 11 5 . . . . 2 . 2 . . 2 . . . . 1 . . . 2 1 Energy Cannon 33 | . . . . . . 4 . . . . 6 2 . . 2 1 2 1 . . 10 . . 3 . 2 Ballistic Gun 33 | . . . . . 1 2 1 3 . . 3 5 1 . 2 3 1 . . . 8 . . . . 3 Ballistic Cannon 1 | . . . . . . . . . . . . . . . . . . . . . . . . . . 1 Launcher 26 | . . . . . . 2 1 . . . 3 2 2 . 1 4 1 . . . 3 . . 2 . 5 Special Weapon 4 | . . . . . . . . . . . . 1 . . . . . . . . . . . . . 3 Impact Weapon 1 | . . . . . . 1 . . . . . . . . . . . . . . . . . . . . Slashing Weapon . | . . . . . . . . . . . . . . . . . . . . . . . . . . . Piercing Weapon . | . . . . . . . . . . . . . . . . . . . . . . . . . . . Special Melee Weapon . | . . . . . . . . . . . . . . . . . . . . . . . . . . . Unidentified Prototypes 29 | . . . . . 2 2 . . 2 . 4 2 8 . 1 1 . . 4 . 1 . . . . 2 Parts Lost 123 | . 1 . . . 1 11 5 3 . 1 11 2 7 1 3 8 2 2 . 2 25 1 1 5 . 31 Power 17 | . . . . . . 1 1 . . . 3 . 1 . 1 2 . . . . 3 . 1 . . 4 Propulsion 29 | . . . . . . 2 1 1 . 1 3 2 3 . . 2 1 1 . . 6 . . . . 6 Utility 44 | . . . . . . 5 2 1 . . 1 . 2 1 2 2 . 1 . 2 12 . . 4 . 9 Weapon 33 | . 1 . . . 1 3 1 1 . . 4 . 1 . . 2 1 . . . 4 1 . 1 . 12 Highest Loss Streak 7 | . 1 . . . 1 4 2 3 . 1 6 1 6 1 1 5 1 2 . 1 4 1 1 4 . 7 Average Slot Usage (%) 81 | . 93 100 93 85 89 87 79 61 85 88 76 86 80 75 84 82 87 85 84 85 71 70 81 83 74 48 Core 4 | . . 11 14 14 9 7 2 7 6 . 3 . 1 . 2 6 4 . . . 1 6 5 5 5 1 Reactor 4 | . . . . . . . . . . . 1 9 9 13 9 3 5 5 7 11 8 3 4 5 5 3 Treads 7 | . 28 28 18 . . . . . . . . . 12 13 13 15 12 12 17 17 3 . . . . . Leg 3 | . . . . . . . . . . . . . . . . . . . . . 9 21 21 21 21 7 Wheel 7 | . . . 9 28 27 21 22 15 23 19 14 16 1 . . . 2 3 . . . . . . . . Device 8 | . . 14 8 . 14 6 5 . . . . . 1 6 6 5 5 5 7 10 8 16 26 25 20 10 Storage 9 | . 14 14 13 14 9 7 7 7 7 7 6 13 9 13 13 11 11 11 11 11 6 5 5 5 5 5 Processor 12 | . . . . . 8 16 15 15 19 23 26 20 18 13 13 11 11 11 11 14 13 10 10 10 10 12 Protection 7 | . 7 . . . 3 12 11 . 5 7 3 6 7 8 12 13 17 14 11 5 5 . 2 4 . . Energy Gun 5 | . 27 28 28 28 17 5 . . . . 1 . 3 . . 3 5 5 5 5 . . . . 3 2 Energy Cannon 2 | . . . . . . 4 . . . . 3 4 . . 6 1 3 5 5 5 4 6 5 4 . . Ballistic Gun 2 | . . . . . . 2 12 14 15 15 2 7 5 . 5 2 . . . . 3 . . . . . Naked Turns 3 | . . . . . . . . . . . . . . . . . . . . . . . . . . 3 Heaviest Build 259 | 13 32 34 253 253 259 258 184 174 176 173 194 197 226 205 217 216 216 214 228 221 236 202 209 220 205 213 Greatest Support 160 | 40 40 42 42 24 40 48 48 48 48 48 48 48 108 108 108 160 56 56 56 56 136 116 116 116 100 100 Greatest Overweight (x) 69 | . . . 21 10 6 10 3 5 3 5 11 6 4 1 2 3 21 69 4 3 13 1 1 2 2 62 Average Overweight (x) 3 | . . . 2 10 6 5 3 4 3 3 5 4 1 1 1 1 14 16 3 3 2 1 1 1 1 3 Largest Inventory Capacity 35 | 8 15 15 35 35 35 35 30 30 30 30 30 30 30 30 30 30 30 30 30 30 30 30 30 30 35 30 Average Capacity 29 | 8 13 15 22 35 35 31 30 30 30 30 30 30 30 30 30 30 30 30 30 30 30 30 30 30 30 28 Most Carried 35 | 6 15 15 18 25 35 35 30 29 29 30 30 30 30 30 30 30 23 30 30 30 30 30 30 30 30 30 Average Carried 26 | 6 11 15 14 18 32 29 29 27 27 29 27 29 29 29 29 23 22 26 29 28 27 29 29 29 28 20 Final Capacity 35 | 8 15 15 35 35 35 30 30 30 30 30 30 30 30 30 30 30 30 30 30 30 30 30 30 30 30 5 Final Carried 35 | 6 15 15 18 25 35 30 30 27 29 30 30 30 30 29 30 23 23 30 30 28 28 29 30 29 30 5 Class Distribution -------------------- 90% | Hauler-Mutant 6% | Mutant 3% | Scavenger-Mutant Dominant Class ---------------- Mutant | -10/Materials Mutant | -10/Mines Mutant | -10/Exiles Hauler-Mutant | -9/Mines Hauler-Mutant | -8/Materials Hauler-Mutant | -7/Factory Hauler-Mutant | -7/Lower Caves Hauler-Mutant | -7/Lower Caves Hauler-Mutant | -7/Zion Hauler-Mutant | -6/Proximity Caves Hauler-Mutant | -6/Factory Hauler-Mutant | -6/Extension Hauler-Mutant | -6/Cetus Hauler-Mutant | -6/Archives Hauler-Mutant | -6/Hub_04(d) Hauler-Mutant | -5/Factory Hauler-Mutant | -5/Upper Caves Hauler-Mutant | -5/Upper Caves Hauler-Mutant | -5/Zhirov Hauler-Mutant | -4/Proximity Caves Hauler-Mutant | -4/Factory Hauler-Mutant | -4/Upper Caves Hauler-Mutant | -4/Upper Caves Hauler-Mutant | -4/Warlord Hauler-Mutant | -3/Proximity Caves Hauler-Mutant | -3/Research Resources | -11 -10 -10 -10 -9 -8 -7 -7 -7 -7 -6 -6 -6 -6 -6 -6 -5 -5 -5 -5 -4 -4 -4 -4 -4 -3 -3 ----------- Run | Scr Mat Min Exi Min Mat Fac Low Low Zio Pro Fac Ext Cet Arc Hub Fac Upp Upp Zhi Pro Fac Upp Upp War Pro Res Matter Collected 6739 | 220 65 102 44 30 378 530 250 92 51 189 354 291 335 160 231 1110 211 75 . 105 1021 59 150 141 50 495 Remotely . | . . . . . . . . . . . . . . . . . . . . . . . . . . . Salvage Created 16288 | . 335 7 . . 1092 1961 350 72 . 391 840 427 744 391 890 2118 226 131 . 727 3233 235 444 198 78 1398 Parts 677 | . 12 3 . . 47 96 20 8 . 14 35 14 19 18 38 97 6 5 . 22 131 10 15 2 4 61 Haulers Intercepted 7 | . 2 . . . 4 . . . . . . . . . 1 . . . . . . . . . . . Recyclers Shooed 13 | . . . . . . . . . . . 3 . . . . 4 . . . . 5 . . . . 1 Parts Field Recycled . | . . . . . . . . . . . . . . . . . . . . . . . . . . . Retrieved Matter . | . . . . . . . . . . . . . . . . . . . . . . . . . . . Parts Self-Destructed 104 | . . . . . . . 7 8 3 18 . . . . . . 6 5 . 22 . 2 . 29 4 . Prevented 50 | . . . . . . . . . . 8 . . . . . . 2 . . . . 8 19 13 . . Kills | -11 -10 -10 -10 -9 -8 -7 -7 -7 -7 -6 -6 -6 -6 -6 -6 -5 -5 -5 -5 -4 -4 -4 -4 -4 -3 -3 ------- Run | Scr Mat Min Exi Min Mat Fac Low Low Zio Pro Fac Ext Cet Arc Hub Fac Upp Upp Zhi Pro Fac Upp Upp War Pro Res Combat Hostiles Destroyed 246 | . 6 . . . 15 34 11 3 . 6 13 2 14 4 13 38 7 2 . 9 34 3 6 5 1 20 Melee 1 | . . . . . . . . . . . . . . . . 1 . . . . . . . . . . Guns 102 | . 6 . . . 15 18 7 3 . 6 1 2 8 . 3 14 1 1 . . 11 . . . 1 5 Cannons 41 | . . . . . . 12 . . . . . . . . 5 1 1 1 . 9 5 2 1 . . 4 AOE 67 | . . . . . . 3 4 . . . 8 . 3 2 3 21 4 . . . 8 . . 5 . 6 Classes Destroyed 18 | . 4 2 . . 4 4 . . . . . . 1 . 1 1 . . . . . . . . 1 . Worker 16 | . . 1 . . . . . . . . . 1 . . 1 8 . . . . 4 . . . . 1 Builder 17 | . . 1 . . 1 . . . . . 2 . . . 1 2 . . . . 6 . . . . 4 Hauler 7 | . 2 . . . 4 . . . . . . . . . 1 . . . . . . . . . . . Recycler 14 | . 1 . . . . 1 . . . . 1 2 . . . 1 . . . . 5 . . . . 3 Minesweeper 1 | . . . . . . . . . . . . . . . . . . . . . . . . . 1 . Operator 5 | . . . . . . 1 . . . . . 1 . 1 1 . . . . . 1 . . . . . Watcher 8 | . . . . . 1 1 . . . . . . 1 . . 4 . . . . 1 . . . . . Swarmer 37 | . 3 . . . . . 7 3 . . 4 . 6 . 3 7 . . . . . . . . . 4 Grunt 105 | . 3 . . . 10 17 . . . 5 6 1 6 . 4 22 4 . . 8 7 . 3 3 . 6 Brawler 2 | . . . . . 1 . . . . . . . . . . . . . . . . . . 1 . . Duelist 4 | . . . . . . 1 . . . . . . 1 . . 1 . . . . . . 1 . . . Protector 2 | . . . . . . 1 . . . . . . . . . . . . . . . . . 1 . . Sentry 25 | . . . . . 3 6 . . . 1 . 1 . 4 5 . 1 . . . 2 1 . . . 1 Hunter 34 | . . . . . 1 4 . . . . 2 . . . . 4 1 2 . . 12 2 2 . . 4 Programmer 30 | . . . . . . 5 . . . . 1 . . . 1 3 1 . . . 13 . . . 1 5 Behemoth 2 | . . . . . . . . . . . . . . . . 1 . . . 1 . . . . . . Cetus Guard 1 | . . . . . . . . . . . . . 1 . . . . . . . . . . . . . Z-Light 1 | . . . . . . . . . . . . . . . 1 . . . . . . . . . . . Thug 1 | . . . . . . . 1 . . . . . . . . . . . . . . . . . . . Butcher 3 | . . . . . . . 3 . . . . . . . . . . . . . . . . . . . Fireman 1 | . . . . . . . . . . . . . 1 . . . . . . . . . . . . . Best Kill Streak 12 | . 3 1 . . 3 7 4 3 . 3 4 3 6 2 5 12 4 1 . 8 9 1 2 5 1 6 Combat Bots Only 8 | . 3 . . . 3 4 4 3 . 3 4 1 6 2 3 7 4 1 . 8 4 1 2 5 1 4 Max Kills in Single Turn 4 | . 1 1 . . 1 1 2 1 . 1 2 1 1 1 4 4 3 1 . 1 2 1 1 4 1 3 Gunslinging . | . . . . . . . . . . . . . . . . . . . . . . . . . . . Exploded 4 | . . . . . . 1 2 . . . 2 . 1 1 3 3 3 . . . 1 . . 4 . 2 Melee 1 | . . . . . . . . . . . . . . . . 1 . . . . . . . . . . Uniques/NPCs Destroyed . | . . . . . . . . . . . . . . . . . . . . . . . . . . . Combat | -11 -10 -10 -10 -9 -8 -7 -7 -7 -7 -6 -6 -6 -6 -6 -6 -5 -5 -5 -5 -4 -4 -4 -4 -4 -3 -3 -------- Run | Scr Mat Min Exi Min Mat Fac Low Low Zio Pro Fac Ext Cet Arc Hub Fac Upp Upp Zhi Pro Fac Upp Upp War Pro Res Damage Taken 21525 | . 129 . . 84 507 1897 618 243 . 471 951 367 1020 347 1014 3415 464 281 . 545 3586 267 544 739 46 3990 Core 3332 | . 9 . . 11 102 264 136 23 . 161 245 65 152 16 107 238 39 13 . 13 358 20 88 39 9 1224 Absorbed by Shields 342 | . . . . . 87 30 . . . . . 83 38 . . . . . . . . . . . 48 56 Reduced by Siege Mode 42 | . . . . . . . . . . . . . . . . 42 . . . . . . . . . . Core Remaining (%) 63 | 100 . . . 92 81 . . . . 16 . . . . 31 . . . . 69 . . . . 55 . Volleys Fired 775 | . 31 . . 4 60 111 20 9 . 25 39 18 40 24 37 75 14 28 . 13 112 8 16 7 8 76 Largest 2 | . 2 . . 2 2 2 2 2 . 2 2 2 2 1 2 2 2 2 . 2 2 2 1 1 2 2 Hottest 162 | . 112 . . 112 122 122 61 56 . 53 108 105 140 36 105 108 136 136 . 151 162 162 81 81 144 162 Shots Fired 1283 | . 58 . . 8 118 208 37 14 . 50 50 30 64 24 65 121 20 49 . 26 186 13 16 7 15 104 Gun 763 | . 58 . . 8 118 115 33 14 . 50 21 19 50 . 16 74 10 21 . 13 77 . . . 15 51 Cannon 334 | . . . . . . 80 . . . . 10 6 . . 39 23 6 28 . 13 70 13 16 1 . 29 Launcher 173 | . . . . . . 13 4 . . . 19 . 14 24 10 24 4 . . . 39 . . 6 . 16 Special 13 | . . . . . . . . . . . . 5 . . . . . . . . . . . . . 8 Kinetic 354 | . . . . . . 23 33 14 . 50 16 19 30 . 16 53 4 . . . 69 . . . . 27 Thermal 604 | . 58 . . 8 118 165 . . . . 3 6 9 . 39 44 12 49 . 26 12 . . . 15 40 Explosive 40 | . . . . . . . 4 . . . . . . . . 7 4 . . . 5 . . 4 . 16 Electromagnetic 261 | . . . . . . 20 . . . . 31 . 14 24 10 17 . . . . 100 13 16 3 . 13 Phasic 11 | . . . . . . . . . . . . . 11 . . . . . . . . . . . . . Robot Hit Streak 55 | . 16 . . 17 48 55 20 9 . 25 32 19 23 12 24 49 15 11 . 33 35 4 10 8 22 45 Robot Miss Streak 5 | . 1 . . 1 3 4 5 3 . 1 2 1 2 1 2 5 1 1 . . 5 2 2 . . 4 Penetration Max 1 | . . . . . . . . . . 1 . . . . . . . . . . 1 . . . . . Secondary Targets 9 | . 1 . . . 3 1 . . . . . . . . 2 2 . . . . . . . . . . Max Gunslinging Chain 1 | . 1 . . . 1 1 . . . . . . . . 1 1 . . . . . . . . . . Shots Hit Robots 1068 | . 49 . . 7 103 184 33 13 . 44 43 24 56 14 58 94 18 29 . 26 145 6 13 5 14 90 Core Hits 811 | . 12 2 . . 40 95 42 8 . 20 32 14 28 13 45 189 27 7 . 16 119 3 6 22 5 66 Critical Hits 23 | . . . . . . . . . . 3 2 1 . . . 1 . . . . 9 1 . . . 6 Critical Kills 12 | . . . . . . . . . . 1 1 1 . . . 1 . . . . 5 1 . . . 2 Critical Parts Destroyed 11 | . . . . . . . . . . 2 1 . . . . . . . . . 4 . . . . 4 Melee Attacks . | . . . . . . . . . . . . . . . . . . . . . . . . . . . Impact . | . . . . . . . . . . . . . . . . . . . . . . . . . . . Slashing . | . . . . . . . . . . . . . . . . . . . . . . . . . . . Piercing . | . . . . . . . . . . . . . . . . . . . . . . . . . . . Sneak Attacks . | . . . . . . . . . . . . . . . . . . . . . . . . . . . Combat Hostiles . | . . . . . . . . . . . . . . . . . . . . . . . . . . . Follow-up Attacks . | . . . . . . . . . . . . . . . . . . . . . . . . . . . Damage Inflicted 35224 | . 689 21 . 104 1578 4217 870 221 . 914 1741 472 1610 787 2223 5461 1076 637 . 1088 5695 243 546 1519 264 3248 Guns 13822 | . 681 . . 104 1494 2003 570 221 . 914 300 390 1064 . 483 1604 164 273 . 273 1874 . . . 264 1146 Cannons 8261 | . . . . . . 1799 . . . . 214 55 . . 888 656 143 364 . 815 1857 243 546 33 . 648 Explosions 12836 | . . . . . . 392 300 . . . 1220 . 546 755 806 3153 769 . . . 1964 . . 1477 . 1454 Melee . | . . . . . . . . . . . . . . . . . . . . . . . . . . . Ramming 305 | . 8 21 . . 84 23 . . . . 7 27 . 32 46 48 . . . . . . . 9 . . Kinetic 7297 | . . . . . . 570 570 221 . 914 228 390 481 . 483 1170 70 . . . 1690 . . . . 510 Thermal 12079 | . 681 . . 104 1494 3175 . . . . 362 55 268 70 972 1112 237 637 . 1088 717 . . . 264 843 Explosive 6413 | . . . . . . . 300 . . . . . . . . 2216 769 . . . 278 . . 1396 . 1454 Electromagnetic 8800 | . . . . . . 449 . . . . 1144 . 531 685 722 915 . . . . 3010 243 546 114 . 441 Impact . | . . . . . . . . . . . . . . . . . . . . . . . . . . . Slashing . | . . . . . . . . . . . . . . . . . . . . . . . . . . . Piercing . | . . . . . . . . . . . . . . . . . . . . . . . . . . . Phasic 330 | . . . . . . . . . . . . . 330 . . . . . . . . . . . . . Highest Corruption 9 | . . . . . . 4 4 4 4 . . 1 1 1 6 . 1 1 1 1 9 9 9 9 1 4 Average Corruption 2 | . . . . . . 2 4 4 4 . . 1 1 1 1 . 1 1 1 1 5 9 9 9 1 2 Corruption Purged . | . . . . . . . . . . . . . . . . . . . . . . . . . . . Effects 205 | . . . . . . 13 15 13 1 . . 4 4 2 11 . 10 8 2 2 49 34 23 4 . 10 Message Errors 79 | . . . . . . 6 7 6 1 . . 4 4 1 4 . 4 4 2 1 21 6 2 2 . 4 Matter Fused 27 | . . . . . . 1 2 1 . . . . . . 2 . . . . . 5 6 7 2 . 1 Heat Flow Errors 23 | . . . . . . 4 . 1 . . . . . . 1 . . . . . 6 7 4 . . . Energy Discharges 29 | . . . . . . 1 4 2 . . . . . . 2 . 4 1 . 1 5 5 3 . . 1 Data Loss (minor) 30 | . . . . . . 1 2 3 . . . . . 1 . . 2 3 . . 6 4 4 . . 4 Data Loss (major) 8 | . . . . . . . . . . . . . . . 1 . . . . . . 4 3 . . . Misfires 8 | . . . . . . . . . . . . . . . 1 . . . . . 5 2 . . . . Weapon Failures 1 | . . . . . . . . . . . . . . . . . . . . . 1 . . . . . Overload Shots 12 | . . . . . . . . . . . . . . . . . . . . 11 1 . . . . . Effects 3 | . . . . . . . . . . . . . . . . . . . . . 3 . . . . . Meltdown 3 | . . . . . . . . . . . . . . . . . . . . . 3 . . . . . Overflow Damage 515 | . . . . . 21 34 37 . . . 40 . . 27 8 31 5 86 . 10 107 . . 55 . 54 Projectiles 254 | . . . . . . 34 . . . . . . . . 3 2 . 86 . 10 52 . . 30 . 37 Explosions 214 | . . . . . . . 37 . . . 40 . . 5 5 25 5 . . . 55 . . 25 . 17 Melee 47 | . . . . . 21 . . . . . . . . 22 . 4 . . . . . . . . . . Knockbacks 5 | . . . . . . 1 . . . . . . . 1 . 2 . . . . . . . . . 1 Impact 4 | . . . . . . 1 . . . . . . . 1 . 2 . . . . . . . . . . Kinetic 1 | . . . . . . . . . . . . . . . . . . . . . . . . . . 1 Secondary . | . . . . . . . . . . . . . . . . . . . . . . . . . . . Self-Inflicted Damage 385 | . . . . . 41 33 . . . . 30 13 . 8 80 40 43 . . . 76 . . 16 . 5 Shots 18 | . . . . . . 4 . . . . 1 . . 2 1 2 2 . . . 4 . . 1 . 1 Rammed 28 | . 1 5 . . 5 3 . . . . 1 2 . 1 6 4 . . . . . . . . . . Targets Rammed 34 | . 2 7 . . 5 3 . . . . 1 2 . 1 6 5 . . . . . . . 2 . . Kicked 2 | . . . . . . . . . . . . . . . . . . . . . . . . 2 . . Crushed 4 | . 1 2 . . . . . . . . . . . . . 1 . . . . . . . . . . Highest Temperature 498 | . 264 . . 120 36 366 . 112 . 24 243 498 168 . 243 454 330 315 . 200 450 154 143 . 28 52 Average Temperature 114 | . 98 . . 65 10 96 . 58 . 10 98 245 57 . 76 176 115 113 . 102 115 69 67 . 12 11 Received Heat Transfer 4280 | . 66 . . 36 286 863 21 . . 228 147 97 239 54 384 891 57 . . 162 153 . 108 114 . 374 Effects 20 | . . . . . . 1 . . . . . 7 . . . 8 . . . . 4 . . . . . Shutdowns 5 | . . . . . . 1 . . . . . . . . . 4 . . . . . . . . . . Energy Bleed 3 | . . . . . . . . . . . . 2 . . . . . . . . 1 . . . . . Interference 6 | . . . . . . . . . . . . 2 . . . 1 . . . . 3 . . . . . Matter Decay 1 | . . . . . . . . . . . . 1 . . . . . . . . . . . . . . Damage (minor) 4 | . . . . . . . . . . . . 1 . . . 3 . . . . . . . . . . Damage (major) 1 | . . . . . . . . . . . . 1 . . . . . . . . . . . . . . Siege Activations 3 | . . . . . . . . . . . . . . . . 2 . . . . 1 . . . . . Total Turns 33 | . . . . . . . . . . . . . . . . 28 . . . . 5 . . . . . Longest Duration 17 | . . . . . . . . . . . . . . . . 17 . . . . 5 . . . . . Robots Corrupted 37 | . . . . . . 1 . . . . 4 . 3 3 3 2 . . . . 12 1 5 . . 3 Combat Hostiles 32 | . . . . . . 1 . . . . 4 . 3 2 2 1 . . . . 10 1 5 . . 3 Parts Fried 72 | . . . . . . 1 . . . . 10 . 2 3 2 7 . . . . 30 2 10 . . 5 Impact Corruptions 3 | . . . . . 1 . . . . . . . . 1 . 1 . . . . . . . . . . Robots Melted . | . . . . . . . . . . . . . . . . . . . . . . . . . . . Combat Hostiles . | . . . . . . . . . . . . . . . . . . . . . . . . . . . Parts Melted 56 | . 2 . . . 11 11 . . . . . . 3 . 6 3 1 2 . 8 1 . . . . 8 Heat Transferred 19501 | . 1739 . . 259 3626 4938 . . . . 337 74 346 50 1371 1506 370 1110 . 1105 820 . . . 444 1406 Parts Sabotaged . | . . . . . . . . . . . . . . . . . . . . . . . . . . . Parts Stolen 1 | . . . . . . . . 1 . . . . . . . . . . . . . . . . . . Parts Stripped . | . . . . . . . . . . . . . . . . . . . . . . . . . . . Power Chain Reactions 17 | . . . . . . 1 . . . . 4 . 1 1 1 1 . . . . 8 . . . . . Missiles Intercepted . | . . . . . . . . . . . . . . . . . . . . . . . . . . . Alert | -11 -10 -10 -10 -9 -8 -7 -7 -7 -7 -6 -6 -6 -6 -6 -6 -5 -5 -5 -5 -4 -4 -4 -4 -4 -3 -3 ------- Run | Scr Mat Min Exi Min Mat Fac Low Low Zio Pro Fac Ext Cet Arc Hub Fac Upp Upp Zhi Pro Fac Upp Upp War Pro Res Peak Influence 884 | . 204 33 . 178 305 461 . . . . 330 426 378 216 624 884 . . . . 202 . . . . 222 Initial 263 | . . 28 . . 40 15 . . . . 80 31 156 59 63 263 . . . . . . . . . 20 Average 216 | . 85 13 . 99 136 207 . . . . 179 186 203 153 292 608 . . . . 78 . . . . 102 Maximum Alert Level 3 | . 1 . . . 1 2 . . . . 1 2 1 1 2 3 . . . . 1 . . . . 1 Low Security (%) 60 | 100 85 100 . 100 79 47 . . . . 62 54 47 62 30 2 . . . . 98 . . . . 94 Level 1 22 | . 14 . . . 20 35 . . . . 37 42 52 37 39 20 . . . . 1 . . . . 5 Level 2 11 | . . . . . . 17 . . . . . 3 . . 30 41 . . . . . . . . . . Level 3 5 | . . . . . . . . . . . . . . . . 35 . . . . . . . . . . Level 4 . | . . . . . . . . . . . . . . . . . . . . . . . . . . . Level 5 . | . . . . . . . . . . . . . . . . . . . . . . . . . . . High Security . | . . . . . . . . . . . . . . . . . . . . . . . . . . . Max Security . | . . . . . . . . . . . . . . . . . . . . . . . . . . . Squads Dispatched 65 | . . 1 . . . 18 . . . . 2 3 . . 10 9 . . . . 12 . . . . 10 Investigation 11 | . . 1 . . . 6 . . . . . . . . 2 . . . . . 1 . . . . 1 Extermination 18 | . . . . . . 4 . . . . 1 . . . 2 4 . . . . 5 . . . . 2 Reinforcement 25 | . . . . . . 5 . . . . 1 3 . . 4 2 . . . . 6 . . . . 4 Assault 3 | . . . . . . 1 . . . . . . . . . 2 . . . . . . . . . . Garrison 8 | . . . . . . 2 . . . . . . . . 2 1 . . . . . . . . . 3 Intercept . | . . . . . . . . . . . . . . . . . . . . . . . . . . . Construction Impeded 9 | . . . . . . 1 . . . . . 1 . . . 1 . . . . 4 . . . . 2 Haulers Reinforced 3 | . . . . . . 1 . . . . . . . . . 1 . . . . 1 . . . . . Stealth | -11 -10 -10 -10 -9 -8 -7 -7 -7 -7 -6 -6 -6 -6 -6 -6 -5 -5 -5 -5 -4 -4 -4 -4 -4 -3 -3 --------- Run | Scr Mat Min Exi Min Mat Fac Low Low Zio Pro Fac Ext Cet Arc Hub Fac Upp Upp Zhi Pro Fac Upp Upp War Pro Res Distress Signals 16 | . 2 . . . . 2 . . . . . 3 2 . 2 3 . . . . 2 . . . . . Communications Jammed . | . . . . . . . . . . . . . . . . . . . . . . . . . . . Distress Signals . | . . . . . . . . . . . . . . . . . . . . . . . . . . . Times Spotted 479 | . 14 . . 9 24 50 12 4 . 18 21 32 29 16 46 67 7 2 . 9 39 3 7 28 1 41 Peak Tracking Total 12 | . 4 . . 3 4 7 4 4 . 9 5 7 5 1 8 12 4 1 . 5 4 2 3 10 1 7 Tactical Retreats 34 | . 3 . . . . 4 1 . . 1 . 5 4 . 3 4 . . . . . . 1 2 . 6 Traps | -11 -10 -10 -10 -9 -8 -7 -7 -7 -7 -6 -6 -6 -6 -6 -6 -5 -5 -5 -5 -4 -4 -4 -4 -4 -3 -3 ------- Run | Scr Mat Min Exi Min Mat Fac Low Low Zio Pro Fac Ext Cet Arc Hub Fac Upp Upp Zhi Pro Fac Upp Upp War Pro Res Traps Triggered 15 | . . . . . 1 1 . . . . 2 4 . . 2 . . . . . 2 . . 3 . . Indirectly 5 | . . . . . . 1 . . . . . . . . . . . . . . 1 . . 3 . . Trap Hack Attempts . | . . . . . . . . . . . . . . . . . . . . . . . . . . . Triggered . | . . . . . . . . . . . . . . . . . . . . . . . . . . . Disarmed 6 | . 6 . . . . . . . . . . . . . . . . . . . . . . . . . Reprogrammed . | . . . . . . . . . . . . . . . . . . . . . . . . . . . Reused . | . . . . . . . . . . . . . . . . . . . . . . . . . . . Traps Extracted . | . . . . . . . . . . . . . . . . . . . . . . . . . . . Installed . | . . . . . . . . . . . . . . . . . . . . . . . . . . . Triggered 14 | . . . . . . . . 1 . . . 1 . . . . 2 . . . . . 2 8 . . Machines | -11 -10 -10 -10 -9 -8 -7 -7 -7 -7 -6 -6 -6 -6 -6 -6 -5 -5 -5 -5 -4 -4 -4 -4 -4 -3 -3 ---------- Run | Scr Mat Min Exi Min Mat Fac Low Low Zio Pro Fac Ext Cet Arc Hub Fac Upp Upp Zhi Pro Fac Upp Upp War Pro Res Machines Disabled 36 | . . . . 6 . 2 . . . 2 4 3 3 2 8 . . 1 . . . . . 1 . 4 Max in Single Turn 3 | . . . . . . 1 . . . 1 1 1 1 1 3 . . 1 . . . . . 1 . 1 Garrison Access 4 | . . . . . . 1 . . . . . . . . 2 1 . . . . . . . . . . Network Hub 1 | . . . . . . . . . . . . . . . 1 . . . . . . . . . . . Energy Cycler 1 | . . . . . . . . . . . . 1 . . . . . . . . . . . . . . Machines Sabotaged . | . . . . . . . . . . . . . . . . . . . . . . . . . . . Garrisons Compromised . | . . . . . . . . . . . . . . . . . . . . . . . . . . . Overloaded Fab Kills . | . . . . . . . . . . . . . . . . . . . . . . . . . . . Fab Network Shutdowns . | . . . . . . . . . . . . . . . . . . . . . . . . . . . Hacking | -11 -10 -10 -10 -9 -8 -7 -7 -7 -7 -6 -6 -6 -6 -6 -6 -5 -5 -5 -5 -4 -4 -4 -4 -4 -3 -3 --------- Run | Scr Mat Min Exi Min Mat Fac Low Low Zio Pro Fac Ext Cet Arc Hub Fac Upp Upp Zhi Pro Fac Upp Upp War Pro Res Machines Accessed 41 | . 5 2 1 . 8 8 1 . 1 . . . . . 2 4 . . 4 . 3 . . . . 2 Terminals 16 | . 5 1 . . 5 5 . . . . . . . . . . . . . . . . . . . . Fabricators 5 | . . . . . . 2 . . . . . . . . . . . . . . 2 . . . . 1 Repair Stations 7 | . . . . . 2 1 . . . . . . . . . 3 . . . . 1 . . . . . Recycling Units . | . . . . . . . . . . . . . . . . . . . . . . . . . . . Scanalyzers 2 | . . . . . 1 . . . . . . . . . . . . . . . . . . . . 1 Garrison Access 3 | . . . . . . . . . . . . . . . 2 1 . . . . . . . . . . Total Hacks 154 | . 26 3 1 . 31 20 1 . 6 . . . . . 4 18 . . 17 . 21 . . . . 6 Successful 94 | . 16 3 1 . 21 6 1 . 6 . . . . . 2 8 . . 17 . 11 . . . . 2 Failed 60 | . 10 . . . 10 14 . . . . . . . . 2 10 . . . . 10 . . . . 4 Catastrophic 6 | . 1 . . . . 4 . . . . . . . . . 1 . . . . . . . . . . Database Lockouts . | . . . . . . . . . . . . . . . . . . . . . . . . . . . Manual 134 | . 18 2 . . 11 5 . . . . 4 39 9 . 24 10 . 1 . . 8 . . . . 3 Terminals 57 | . 26 2 . . 19 10 . . . . . . . . . . . . . . . . . . . . Fabricators 26 | . . . . . . 6 . . . . . . . . . . . . . . 16 . . . . 4 Repair Stations 30 | . . . . . 5 4 . . . . . . . . . 16 . . . . 5 . . . . . Recycling Units . | . . . . . . . . . . . . . . . . . . . . . . . . . . . Scanalyzers 9 | . . . . . 7 . . . . . . . . . . . . . . . . . . . . 2 Garrison Access 6 | . . . . . . . . . . . . . . . 4 2 . . . . . . . . . . Terminal Hacks 52 | . 14 3 1 . 9 1 1 . 6 . . . . . . . . . 17 . . . . . . . Record 6 | . . . 1 . . . . . . . . . . . . . . . 5 . . . . . . . Part Schematic 14 | . 4 . . . . . . . 6 . . . . . . . . . 4 . . . . . . . Robot Analysis 10 | . . 2 . . 4 . . . . . . . . . . . . . 4 . . . . . . . Prototype ID Bank 8 | . 3 . . . 1 . . . . . . . . . . . . . 4 . . . . . . . Open Door 2 | . . 1 . . . . 1 . . . . . . . . . . . . . . . . . . . Branch Access Points 1 | . . . . . 1 . . . . . . . . . . . . . . . . . . . . . Emergency Access Points 1 | . . . . . 1 . . . . . . . . . . . . . . . . . . . . . Terminal Index 1 | . 1 . . . . . . . . . . . . . . . . . . . . . . . . . Locate Traps 1 | . 1 . . . . . . . . . . . . . . . . . . . . . . . . . Disarm Traps 1 | . 1 . . . . . . . . . . . . . . . . . . . . . . . . . Dispatch Records 1 | . 1 . . . . . . . . . . . . . . . . . . . . . . . . . Security Status 1 | . . . . . 1 . . . . . . . . . . . . . . . . . . . . . Patrol Status 1 | . 1 . . . . . . . . . . . . . . . . . . . . . . . . . Recall Reinforcements 1 | . . . . . . 1 . . . . . . . . . . . . . . . . . . . . Hauler Manifests 2 | . 1 . . . 1 . . . . . . . . . . . . . . . . . . . . . Zone Layout 1 | . 1 . . . . . . . . . . . . . . . . . . . . . . . . . Fabricator Hacks 12 | . . . . . . 4 . . . . . . . . . . . . . . 7 . . . . 1 Load Schematic 7 | . . . . . . 2 . . . . . . . . . . . . . . 4 . . . . 1 Build 5 | . . . . . . 2 . . . . . . . . . . . . . . 3 . . . . . Repair Station Hacks 14 | . . . . . 4 1 . . . . . . . . . 7 . . . . 2 . . . . . Scan Component 8 | . . . . . 2 1 . . . . . . . . . 4 . . . . 1 . . . . . Repair 6 | . . . . . 2 . . . . . . . . . . 3 . . . . 1 . . . . . Recycling Unit Hacks . | . . . . . . . . . . . . . . . . . . . . . . . . . . . Scanalyzer 8 | . . . . . 7 . . . . . . . . . . . . . . . . . . . . 1 Insert Component 5 | . . . . . 4 . . . . . . . . . . . . . . . . . . . . 1 Analyze 3 | . . . . . 3 . . . . . . . . . . . . . . . . . . . . . Garrison Access Hacks 3 | . . . . . . . . . . . . . . . 2 1 . . . . . . . . . . Seal Access 3 | . . . . . . . . . . . . . . . 2 1 . . . . . . . . . . Unauthorized Hacks 5 | . 2 . . . 1 . . . . . . . . . . . . . . . 2 . . . . . Terminals 3 | . 2 . . . 1 . . . . . . . . . . . . . . . . . . . . . Botnet 2 | . 2 . . . . . . . . . . . . . . . . . . . . . . . . . Operators 1 | . . . . . 1 . . . . . . . . . . . . . . . . . . . . . Fabricators 2 | . . . . . . . . . . . . . . . . . . . . . 2 . . . . . Prioritize 2 | . . . . . . . . . . . . . . . . . . . . . 2 . . . . . Repair Stations . | . . . . . . . . . . . . . . . . . . . . . . . . . . . Recycling Units . | . . . . . . . . . . . . . . . . . . . . . . . . . . . Scanalyzers . | . . . . . . . . . . . . . . . . . . . . . . . . . . . Garrison Access . | . . . . . . . . . . . . . . . . . . . . . . . . . . . Data Cores Recovered 1 | . . . . . . . . . . . . 1 . . . . . . . . . . . . . . Used . | . . . . . . . . . . . . . . . . . . . . . . . . . . . Hacking Detections 27 | . 5 1 . . 7 7 . . . . . . . . 2 3 . . . . 1 . . . . 1 Full Trace Events 7 | . . . . . 1 5 . . . . . . . . . . . . . . . . . . . 1 Feedback Events . | . . . . . . . . . . . . . . . . . . . . . . . . . . . Feedback Blocked 1 | . . . . . . 1 . . . . . . . . . . . . . . . . . . . . Robot Schematics Acquired 3 | . . . . . . . . . . . . 3 . . . . . . . . . . . . . . Robots Built . | . . . . . . . . . . . . . . . . . . . . . . . . . . . Matter . | . . . . . . . . . . . . . . . . . . . . . . . . . . . Time . | . . . . . . . . . . . . . . . . . . . . . . . . . . . Total Robot Build Rating . | . . . . . . . . . . . . . . . . . . . . . . . . . . . Part Schematics Acquired 42 | . 4 . . . 3 . . . 6 . . 25 . . . . . . 4 . . . . . . . Parts Built 3 | . . . . . . 2 . . . . . . . . . . . . . . 1 . . . . . Matter 748 | . . . . . . 226 . . . . . . . . . . . . . . 522 . . . . . Time 234 | . . . . . . 48 . . . . . . . . . . . . . . 186 . . . . . Total Part Build Rating 4 | . . . . . . 3 . . . . . . . . . . . . . . 1 . . . . . Parts Repaired 6 | . . . . . 2 . . . . . . . . . . 3 . . . . 1 . . . . . Time 242 | . . . . . 92 . . . . . . . . . . 82 . . . . 68 . . . . . Parts Recycled . | . . . . . . . . . . . . . . . . . . . . . . . . . . . Recycled Matter . | . . . . . . . . . . . . . . . . . . . . . . . . . . . Retrieved Matter . | . . . . . . . . . . . . . . . . . . . . . . . . . . . Retrieved Components . | . . . . . . . . . . . . . . . . . . . . . . . . . . . Parts Scanalyzed 4 | . . . . . 3 . . . . . . . . . . . . . . . . . . . . 1 Part Schematics Acquired 3 | . . . . . 3 . . . . . . . . . . . . . . . . . . . . . Parts Damaged . | . . . . . . . . . . . . . . . . . . . . . . . . . . . Bothacking | -11 -10 -10 -10 -9 -8 -7 -7 -7 -7 -6 -6 -6 -6 -6 -6 -5 -5 -5 -5 -4 -4 -4 -4 -4 -3 -3 ------------ Run | Scr Mat Min Exi Min Mat Fac Low Low Zio Pro Fac Ext Cet Arc Hub Fac Upp Upp Zhi Pro Fac Upp Upp War Pro Res Used RIF Installer . | . . . . . . . . . . . . . . . . . . . . . . . . . . . Robots Hacked 1 | . . . . . . . . . . . . 1 . . . . . . . . . . . . . . Non-combat . | . . . . . . . . . . . . . . . . . . . . . . . . . . . Combat 1 | . . . . . . . . . . . . 1 . . . . . . . . . . . . . . Robot Hacks Applied 1 | . . . . . . . . . . . . 1 . . . . . . . . . . . . . . parse_system 1 | . . . . . . . . . . . . 1 . . . . . . . . . . . . . . Relay Couplers Released 6 | . . . . . . 2 . . . . . . . . . . . . . . 4 . . . . . Machine Destruction 2 | . . . . . . 2 . . . . . . . . . . . . . . . . . . . . Programmers 4 | . . . . . . . . . . . . . . . . . . . . . 4 . . . . . Robots Rewired 6 | . . . . . . . . . . . . 3 . . . . . . . . . . . 3 . . Allies Hacked . | . . . . . . . . . . . . . . . . . . . . . . . . . . . Hacks Repelled . | . . . . . . . . . . . . . . . . . . . . . . . . . . . Allies | -11 -10 -10 -10 -9 -8 -7 -7 -7 -7 -6 -6 -6 -6 -6 -6 -5 -5 -5 -5 -4 -4 -4 -4 -4 -3 -3 -------- Run | Scr Mat Min Exi Min Mat Fac Low Low Zio Pro Fac Ext Cet Arc Hub Fac Upp Upp Zhi Pro Fac Upp Upp War Pro Res Total Allies 46 | . . 3 . 2 . . . . 4 . 5 11 5 . 6 5 . . . . . . . 3 . 2 Largest Group 13 | . . 3 3 5 4 . . . 4 4 3 13 6 . 3 3 1 . . . . . . 3 . 2 Highest-Rated Group 538 | . . 40 40 96 71 . . . 150 150 210 538 404 . 210 210 64 . . . . . . 141 . 206 Highest-Rated Ally 156 | . . 16 16 31 31 . . . 39 39 70 156 150 . 85 70 64 . . . . . . 49 . 103 Zionite Dispatches 13 | . . . . . . . . . . . 2 2 2 . 4 2 . . . . . . . . . 1 Heavy 3 | . . . . . . . . . . . . . 1 . 1 . . . . . . . . . . 1 Light 4 | . . . . . . . . . . . 1 . 1 . 1 1 . . . . . . . . . . Recon 1 | . . . . . . . . . . . . . . . 1 . . . . . . . . . . . Fire 1 | . . . . . . . . . . . . 1 . . . . . . . . . . . . . . Hacker 2 | . . . . . . . . . . . 1 . . . . 1 . . . . . . . . . . Demo 1 | . . . . . . . . . . . . . . . 1 . . . . . . . . . . . Explosive Resupply 1 | . . . . . . . . . . . . 1 . . . . . . . . . . . . . . Total Orders 5 | . . . . . . . . . . . . 1 . . 1 . . . . . . . 1 2 . . STAY 1 | . . . . . . . . . . . . . . . . . . . . . . . . 1 . . FOLLOW 1 | . . . . . . . . . . . . . . . . . . . . . . . . 1 . . DROP 1 | . . . . . . . . . . . . 1 . . . . . . . . . . . . . . EXPLORE 2 | . . . . . . . . . . . . . . . 1 . . . . . . . 1 . . . Ally Attacks 671 | . . . . 24 18 . . . . 41 49 172 107 . 109 87 6 . . . . . . 58 . . Total Damage 16998 | . . . . 516 238 . . . . 1269 988 3814 3010 . 3395 1787 171 . . . . . . 1810 . . Kills 108 | . . . . 10 4 . . . . 11 7 21 10 . 26 11 . . . . . . . 8 . . Allies Corrupted 2 | . . . . . . . . . . . 1 . . . 1 . . . . . . . . . . . Allies Melted . | . . . . . . . . . . . . . . . . . . . . . . . . . . . Intel | -11 -10 -10 -10 -9 -8 -7 -7 -7 -7 -6 -6 -6 -6 -6 -6 -5 -5 -5 -5 -4 -4 -4 -4 -4 -3 -3 ------- Run | Scr Mat Min Exi Min Mat Fac Low Low Zio Pro Fac Ext Cet Arc Hub Fac Upp Upp Zhi Pro Fac Upp Upp War Pro Res Robot Analysis Total 10 | . . 2 . . 4 . . . . . . . . . . . . . 4 . . . . . . . Derelict Logs Recovered 13 | . . 1 . 1 . . 1 3 1 1 . . . . . . 1 1 . 2 . 1 . . . . Drone Launches 2 | . . . . . . . . . . . . . . . 1 . . . . . . . 1 . . . Drone Recoveries 2 | . . . . . . . . . . . . . . . 1 . . . . . . . 1 . . . Zionite Intel Received 15 | . . . . . . . . . . . . 9 . . 4 2 . . . . . . . . . . Main Access 1 | . . . . . . . . . . . . . . . 1 . . . . . . . . . . . Emergency Access 1 | . . . . . . . . . . . . 1 . . . . . . . . . . . . . . Guard Positions 2 | . . . . . . . . . . . . . . . 1 1 . . . . . . . . . . Component Stockpiles 1 | . . . . . . . . . . . . 1 . . . . . . . . . . . . . . Prototype Stockpiles 2 | . . . . . . . . . . . . 1 . . 1 . . . . . . . . . . . Component Schematics 1 | . . . . . . . . . . . . 1 . . . . . . . . . . . . . . Prototype Schematics 1 | . . . . . . . . . . . . 1 . . . . . . . . . . . . . . Unaware Schematics 1 | . . . . . . . . . . . . 1 . . . . . . . . . . . . . . Trap Installations 2 | . . . . . . . . . . . . 1 . . . 1 . . . . . . . . . . Active Terminals 1 | . . . . . . . . . . . . 1 . . . . . . . . . . . . . . Active Garrisons 1 | . . . . . . . . . . . . . . . 1 . . . . . . . . . . . Depthwide Sectors/0 1 | . . . . . . . . . . . . 1 . . . . . . . . . . . . . . Exploration | -11 -10 -10 -10 -9 -8 -7 -7 -7 -7 -6 -6 -6 -6 -6 -6 -5 -5 -5 -5 -4 -4 -4 -4 -4 -3 -3 ------------- Run | Scr Mat Min Exi Min Mat Fac Low Low Zio Pro Fac Ext Cet Arc Hub Fac Upp Upp Zhi Pro Fac Upp Upp War Pro Res Turns Passed 27745 | 12 506 923 429 577 1350 2155 635 404 1078 472 896 1168 805 192 1580 2217 1706 1549 776 1180 2274 1066 621 1228 761 1185 Spaces Moved 10309 | 7 228 589 225 233 511 899 395 219 719 247 422 556 245 53 541 640 377 336 153 248 550 513 277 563 267 296 Core 127 | . . . . . . . . . . . . . . . . . . 3 . . . . . . . 124 Treads 3251 | 4 228 589 168 . . . . . . . . . 221 53 541 640 136 89 153 248 181 . . . . . Legs 2142 | 3 . . . . . . . . . . . . . . . . . . . . 348 513 277 563 267 171 Wheels 4789 | . . . 57 233 511 899 395 219 719 247 422 556 24 . . . 241 244 . . 21 . . . . 1 Hover . | . . . . . . . . . . . . . . . . . . . . . . . . . . . Flight . | . . . . . . . . . . . . . . . . . . . . . . . . . . . Fastest Speed 50 | 120 160 152 152 240 183 145 145 145 145 145 145 145 153 260 260 260 395 380 460 460 200 200 200 200 200 50 Average Speed 232 | 142 160 152 183 240 183 175 145 172 145 156 175 169 264 260 260 281 440 434 493 460 310 200 200 200 273 316 Slowest Speed 3500 | 160 160 160 752 240 183 240 145 175 145 175 265 190 360 260 360 460 860 3500 560 460 760 200 200 280 280 3150 Overloaded Moves . | . . . . . . . . . . . . . . . . . . . . . . . . . . . Propulsion Burnouts . | . . . . . . . . . . . . . . . . . . . . . . . . . . . Robots Hopped . | . . . . . . . . . . . . . . . . . . . . . . . . . . . Cave-ins Triggered . | . . . . . . . . . . . . . . . . . . . . . . . . . . . Teleports 1 | . . . . . . . . . . . . . . . . . . . . . . . . . . 1 Exploration Rate (%) 50 | 3 38 96 56 63 52 23 54 40 82 49 13 76 70 73 74 20 53 54 60 48 12 68 58 59 53 11 Regions Visited 26 Branch Regions 19 Pre-discovered Areas 17 | . . . 1 . . . . . 1 1 . 10 . . . . . 1 3 . . . . . . . Known Exits Taken 9 | . . . . . 1 1 1 1 1 1 1 1 . . 1 . . . . . . . . . . . Unknown Exits Taken 17 | 1 1 1 1 1 . . . . . . . . 1 1 . 1 1 1 1 1 1 1 1 1 1 . Scrap Searched 25 | . . 1 . 3 . . 2 . 2 2 . . . . . . 3 3 . 2 . 4 1 . 2 . Spaces Dug 3 | . . . . . . . . . . . 1 . . . . 1 . 1 . . . . . . . . Terrain Destroyed 619 | . . . . . . 6 18 . . 1 10 18 6 4 164 112 137 2 . . 55 . . 65 . 21 Melee . | . . . . . . . . . . . . . . . . . . . . . . . . . . . Projectile 25 | . . . . . . 2 . . . 1 1 . 2 . 1 2 . 2 . . 14 . . . . . AOE 594 | . . . . . . 4 18 . . . 9 18 4 4 163 110 137 . . . 41 . . 65 . 21 Terrain Rammed . | . . . . . . . . . . . . . . . . . . . . . . . . . . . Walls Destroyed . | . . . . . . . . . . . . . . . . . . . . . . . . . . . Machines Disabled . | . . . . . . . . . . . . . . . . . . . . . . . . . . . Actions | -11 -10 -10 -10 -9 -8 -7 -7 -7 -7 -6 -6 -6 -6 -6 -6 -5 -5 -5 -5 -4 -4 -4 -4 -4 -3 -3 --------- Run | Scr Mat Min Exi Min Mat Fac Low Low Zio Pro Fac Ext Cet Arc Hub Fac Upp Upp Zhi Pro Fac Upp Upp War Pro Res Total 12878 | 8 315 611 245 244 828 1273 419 231 752 293 523 761 352 82 639 917 398 377 177 264 920 544 328 653 284 440 Wait 1026 | . 23 4 . 1 167 148 . . 24 19 24 120 15 3 27 154 . 4 10 . 193 14 26 21 2 27 Move 10283 | 6 227 588 224 232 510 898 394 218 718 246 421 555 244 52 540 639 376 335 152 247 549 512 276 562 266 296 Hop . | . . . . . . . . . . . . . . . . . . . . . . . . . . . Pick Up 181 | . 13 3 13 7 34 49 1 . 2 2 7 6 8 . 4 9 1 6 1 . 9 2 . 1 2 1 Fast Attach 120 | . 5 1 3 . 7 14 1 1 5 . 10 3 13 1 7 4 2 1 6 1 22 2 2 2 3 4 Attach 102 | . 1 . . . 6 13 1 3 . 1 7 2 5 1 3 14 1 . 1 2 12 1 1 2 1 24 Detach 38 | . 2 . 1 . 2 1 . . 1 . 3 2 5 . 1 5 . . . 1 5 . 1 1 . 7 Swap 91 | 2 2 2 . . 8 9 2 . 1 . 9 8 5 . 6 6 3 2 1 . 15 2 4 1 1 2 Drop 140 | . 9 6 4 . 29 27 . . 1 . 2 9 17 . 8 6 1 . 6 . 3 3 2 3 1 3 Fire 775 | . 31 . . 4 60 111 20 9 . 25 39 18 40 24 37 75 14 28 . 13 112 8 16 7 8 76 Melee . | . . . . . . . . . . . . . . . . . . . . . . . . . . . Ram 11 | . . . . . 5 3 . . . . 1 2 . . . . . . . . . . . . . . Kick 2 | . . . . . . . . . . . . . . . . . . . . . . . . 2 . . Crush 21 | . 2 7 . . . . . . . . . . . 1 6 5 . . . . . . . . . . Escape Stasis 36 | . . . . . . . . . . . . 36 . . . . . . . . . . . . . . Rewire 52 | . . . . . . . . . . . . . . . . . . 1 . . . . . 51 . . Trap . | . . . . . . . . . . . . . . . . . . . . . . . . . . . Miscellaneous . | . . . . . . . . . . . . . . . . . . . . . . . . . . . Route ------- -11/Scrapyard -10/Materials -10/Mines (discovered 3 exits: [*Mat x2] / *Exi) -10/Exiles (discovered 2 exits: [*Min x2]) -9/Mines -8/Materials (discovered 2 exits: *Fac x2) -7/Factory -7/Lower Caves -7/Lower Caves (discovered 2 exits: Fac / *Zio) -7/Zion -6/Proximity Caves -6/Factory -6/Extension (discovered 3 exits: *Fac x2 / *Cet) -6/Cetus (discovered 2 exits: *Fac / [*Arc]) -6/Archives -6/Hub_04(d) (discovered 4 exits: *Fac x4) -5/Factory -5/Upper Caves -5/Upper Caves -5/Zhirov -4/Proximity Caves -4/Factory -4/Upper Caves -4/Upper Caves (discovered 2 exits: *Res / *War) -4/Warlord -3/Proximity Caves -3/Research (discovered 1 exit: Arm) History --------- Turn | Location | Event 1 | -11/Scrapyard | Discovered new exit (range 3) 13 | -11/Scrapyard | Entered Materials 312 | -10/Materials | Build established: Mutant 427 | -10/Materials | Discovered new exit (range 14) 519 | -10/Materials | Entered Mines 526 | -10/Mines | Learned location of 1 exit from Materials 536 | -10/Mines | Met a Derelict bent on vengeance 626 | -10/Mines | Met a Derelict shopkeep closing up shop 729 | -10/Mines | Deemed a non-threat by the Exiles lab entrance 826 | -10/Mines | Discovered new exit (range 8) 881 | -10/Mines | Assisted by bots powering up and referring to "LRC-V3" 1045 | -10/Mines | Discovered new exit (range 12) 1432 | -10/Mines | Discovered new exit (range 5) 1442 | -10/Mines | Entered Exiles 1442 | -10/Exiles | Accompanied by 3 allies 1465 | -10/Exiles | Discovered new exit (range 15) 1484 | -10/Exiles | Met 8R-AWN 1505 | -10/Exiles | Met EX-HEX 1586 | -10/Exiles | Met EX-DEC 1612 | -10/Exiles | Learned location of Zion (-7) 1852 | -10/Exiles | Discovered new exit (range 10) 1871 | -10/Exiles | Entered Mines 1871 | -9/Mines | Accompanied by 3 allies 1994 | -9/Mines | Build established: Hauler-Mutant 2279 | -9/Mines | Learned location of 1 exit from Lower Caves 2429 | -9/Mines | Discovered new exit (range 5) 2448 | -9/Mines | Entered Materials 2448 | -8/Materials | Accompanied by 4 allies 2448 | -8/Materials | Evolved 4 slots: Propulsion x1, Utility x3 2449 | -8/Materials | Identified exit to Factory 2453 | -8/Materials | Led the pair of lost Derelicts to an unsafe place 2593 | -8/Materials | Repaired Beam Rifle 3074 | -8/Materials | Discovered exit to Factory (range 15) 3633 | -8/Materials | Repaired Prc. Beam Rifle 3798 | -8/Materials | Entered Factory 3798 | -7/Factory | Evolved 2 slots: Utility x2 4308 | -7/Factory | Fabricated Cargo Storage Unit (x1) 4690 | -7/Factory | Fabricated Rocket Launcher (x1) 4741 | -7/Factory | Garrison activated, responded to threat 4920 | -7/Factory | Lost 4 parts (2u2w) 5932 | -7/Factory | Discovered new exit (range 10) 5948 | -7/Factory | Identified exit to Lower Caves 5953 | -7/Factory | Entered Lower Caves 5954 | -7/Lower Caves | Encountered a Warlord checkpoint 5954 | -7/Lower Caves | Identified exit to Lower Caves 6175 | -7/Lower Caves | Learned Factory terminal intel 6282 | -7/Lower Caves | Ambushed by wild Derelicts 6305 | -7/Lower Caves | Core integrity fell below 50% 6410 | -7/Lower Caves | Spotted B-75 Beast 6588 | -7/Lower Caves | Entered another Lower Caves area 6598 | -7/Lower Caves | Gauss Rifle stolen by Master Thief 6636 | -7/Lower Caves | Lost 3 parts (1n1u1w) 6768 | -7/Lower Caves | Learned Factory machine intel 6782 | -7/Lower Caves | Learned Factory terminal intel 6901 | -7/Lower Caves | Discovered new exit (range 9) 6920 | -7/Lower Caves | Identified exit to Factory 6990 | -7/Lower Caves | Identified exit to Zion 6992 | -7/Lower Caves | Entered Zion 7068 | -7/Zion | System corruption cleaned by Quarantine Array 7474 | -7/Zion | Learned location of Recycling (-7) 7508 | -7/Zion | Found Prototype Processor 7508 | -7/Zion | Identified Exp. Terrain Scan Processor 7523 | -7/Zion | Found Prototype Hackware 7523 | -7/Zion | Identified Exp. Hacking Suite 7657 | -7/Zion | Learned Factory emergency access door positions 7812 | -7/Zion | Imprinted 7814 | -7/Zion | Declared Zion's savior 8035 | -7/Zion | Discovered new exit (range 11) 8048 | -7/Zion | Identified exit to Proximity Caves 8070 | -7/Zion | Entered Proximity Caves 8070 | -6/Proximity Caves | Accompanied by 4 allies 8072 | -6/Proximity Caves | Attracted the attention of an 0b10 checkpoint 8214 | -6/Proximity Caves | Attracted the attention of an 0b10 base 8506 | -6/Proximity Caves | Core integrity fell below 20% 8522 | -6/Proximity Caves | Discovered exit to Factory (range 15) 8542 | -6/Proximity Caves | Entered Factory 8542 | -6/Factory | Evolved 2 slots: Power x1, Utility x1 8544 | -6/Factory | Loaded intel: 243 machine locations 8545 | -6/Factory | Loaded intel: 22 terminal locations 8768 | -6/Factory | Lost 3 parts (1p1n1w) 9034 | -6/Factory | Lost 6 parts (2p1u3w) 9158 | -6/Factory | Zion Light squad teleported in 9270 | -6/Factory | Discovered new exit (range 14) 9329 | -6/Factory | Zion Hacker squad teleported in 9361 | -6/Factory | Found Prototype Protection 9361 | -6/Factory | Identified Zio. Weapon Casing 9436 | -6/Factory | Identified exit to Extension 9438 | -6/Factory | Entered Extension 9438 | -6/Extension | Accompanied by 2 allies 9575 | -6/Extension | Zion Fire squad teleported in 9694 | -6/Extension | Energy Cycler disabled 9696 | -6/Extension | Rescued a captive Derelict 9696 | -6/Extension | Rescued a captive Derelict 9697 | -6/Extension | Rescued a captive Derelict 9703 | -6/Extension | Rescued a captive Derelict 9707 | -6/Extension | Rescued a captive Derelict 9715 | -6/Extension | Rescued A7 9827 | -6/Extension | Zion Explosive Resupply teleported in 9852 | -6/Extension | Found Prototype Launcher 9852 | -6/Extension | Identified Scatter Rocket Array 9961 | -6/Extension | Retrieved Zion intel report: Trap Installations 10025 | -6/Extension | Retrieved Zion intel report: Component Stockpiles 10046 | -6/Extension | Spotted B-75 Beast 10055 | -6/Extension | Spotted B-75 Beast 10065 | -6/Extension | Allies destroyed B-75 Beast 10065 | -6/Extension | Discovered new exit (range 15) 10075 | -6/Extension | Allies destroyed B-75 Beast 10103 | -6/Extension | Retrieved Zion intel report: Depthwide Sectors/0 10162 | -6/Extension | Retrieved Zion intel report: Emergency Access 10173 | -6/Extension | Retrieved Zion intel report: Prototype Stockpiles 10286 | -6/Extension | Retrieved Zion intel report: Active Terminals 10426 | -6/Extension | Retrieved Zion intel report: Component Schematics 10428 | -6/Extension | Retrieved Zion intel report: Unaware Schematics 10469 | -6/Extension | Retrieved Zion intel report: Prototype Schematics 10545 | -6/Extension | Discovered new exit (range 10) 10547 | -6/Extension | Discovered new exit (range 6) 10556 | -6/Extension | Identified exit to Cetus 10606 | -6/Extension | Entered Cetus 10606 | -6/Cetus | Accompanied by 5 allies (A7) 10611 | -6/Cetus | Acquired a Cetus Manufacturing Module code from A7 10627 | -6/Cetus | Spotted Cetus Guard 10627 | -6/Cetus | Spotted Cetus Guard 10631 | -6/Cetus | Spotted Cetus Guard 10631 | -6/Cetus | Spotted Cetus Guard 10652 | -6/Cetus | Allies destroyed Cetus Guard 10666 | -6/Cetus | Allies destroyed Cetus Guard 10666 | -6/Cetus | Destroyed Cetus Guard 10671 | -6/Cetus | Extracted ID and sensor layout for unrecognized location from A7's data core 10695 | -6/Cetus | Lost 6 parts (1p3n2u) 10805 | -6/Cetus | Core integrity fell below 50% 10808 | -6/Cetus | Cetus Manufacturing Module disabled 10867 | -6/Cetus | Zion Heavy squad teleported in 10873 | -6/Cetus | Zion Light squad teleported in 10976 | -6/Cetus | Failed to start Cetus Manufacturing Module 11015 | -6/Cetus | Discovered new exit (range 15) 11065 | -6/Cetus | Spotted Cetus Guard 11065 | -6/Cetus | Spotted Cetus Guard 11067 | -6/Cetus | Spotted Cetus Guard 11067 | -6/Cetus | Spotted Cetus Guard 11077 | -6/Cetus | Allies destroyed Cetus Guard 11081 | -6/Cetus | Allies destroyed Cetus Guard 11088 | -6/Cetus | Allies destroyed Cetus Guard 11090 | -6/Cetus | Allies destroyed Cetus Guard 11094 | -6/Cetus | Discovered new exit (range 16) 11149 | -6/Cetus | Scared off Revision 17 11174 | -6/Cetus | Found Zio. Weapon Casing 11317 | -6/Cetus | Found Zio. Weapon Casing 11322 | -6/Cetus | Found Prototype Protection 11322 | -6/Cetus | Identified Zio. Heavy Carapace 11411 | -6/Cetus | Entered Archives 11556 | -6/Archives | Discovered new exit (range 16) 11603 | -6/Archives | Entered Hub_04(d) 11761 | -6/Hub_04(d) | Retrieved Zion intel report: Main Access 11761 | -6/Hub_04(d) | Identified exit to Factory 11762 | -6/Hub_04(d) | Zion Heavy squad teleported in 12037 | -6/Hub_04(d) | Garrison activated, responded to threat 12060 | -6/Hub_04(d) | Build established: Scavenger-Mutant 12223 | -6/Hub_04(d) | Zion Demo squad teleported in 12283 | -6/Hub_04(d) | Garrison activated, responded to threat 12573 | -6/Hub_04(d) | Build established: Hauler-Mutant 12634 | -6/Hub_04(d) | Retrieved Zion intel report: Guard Positions 12635 | -6/Hub_04(d) | Zion Light squad teleported in 12941 | -6/Hub_04(d) | Retrieved Zion intel report: Prototype Stockpiles 12973 | -6/Hub_04(d) | Spotted B-75 Beast 12977 | -6/Hub_04(d) | Allies destroyed B-75 Beast 12998 | -6/Hub_04(d) | Retrieved Zion intel report: Active Garrisons 12999 | -6/Hub_04(d) | Zion Recon squad teleported in 13147 | -6/Hub_04(d) | Network Hub disabled 13158 | -6/Hub_04(d) | Found Zio. Weapon Casing 13183 | -6/Hub_04(d) | Entered Factory 13183 | -5/Factory | Evolved 2 slots: Propulsion x1, Utility x1 13184 | -5/Factory | Loaded intel: 20 terminal locations 13323 | -5/Factory | Spotted B-75 Beast 13339 | -5/Factory | Destroyed B-75 Beast 13404 | -5/Factory | Retrieved Zion intel report: Trap Installations 13622 | -5/Factory | Garrison activated, responded to threat 13680 | -5/Factory | Destroyed 7 combat bots 13949 | -5/Factory | Lost 5 parts (1p1n2u1w) 13991 | -5/Factory | Retrieved Zion intel report: Guard Positions 13992 | -5/Factory | Zion Hacker squad teleported in 14083 | -5/Factory | First assault squad dispatched 14532 | -5/Factory | Zion Light squad teleported in 14747 | -5/Factory | Repaired Med. Treads 14770 | -5/Factory | Repaired Flak Gun 15066 | -5/Factory | Repaired Shock Bomb Launcher 15116 | -5/Factory | Terminal network hard line cut 15378 | -5/Factory | Discovered new exit (range 6) 15400 | -5/Factory | Entered Upper Caves 15400 | -5/Upper Caves | Accompanied by 2 allies 15402 | -5/Upper Caves | Attracted the attention of an 0b10 checkpoint 16942 | -5/Upper Caves | Learned 4 Factory zone layouts 17091 | -5/Upper Caves | Discovered new exit (range 5) 17106 | -5/Upper Caves | Entered another Upper Caves area 17388 | -5/Upper Caves | Spotted B-75 Beast 18481 | -5/Upper Caves | Discovered new exit (range 16) 18574 | -5/Upper Caves | Acquired the password to a Derelict Tinkerer's latest research 18613 | -5/Upper Caves | Found Prototype Special Weapon 18655 | -5/Upper Caves | Entered Zhirov 18655 | -5/Zhirov | Discovered new exit (range 3) 18738 | -5/Zhirov | Met Zhirov 18826 | -5/Zhirov | Learned location of Testing (-3) 18826 | -5/Zhirov | Learned location of Quarantine (-2) 18826 | -5/Zhirov | Learned location of Command (-1) 18872 | -5/Zhirov | Zhirov requested help retrieving the SGEMP Prototype 18946 | -5/Zhirov | Found Alien Artifact 18997 | -5/Zhirov | Found Alien Artifact 18997 | -5/Zhirov | Identified Integrated Dissipator 18997 | -5/Zhirov | Installed Integrated Dissipator, increased core heat dissipation (+20) 19431 | -5/Zhirov | Entered Proximity Caves 19482 | -4/Proximity Caves | Destroyed 8 combat bots 19791 | -4/Proximity Caves | Spotted B-86 Titan 19799 | -4/Proximity Caves | Destroyed B-86 Titan 19914 | -4/Proximity Caves | Learned Research trap positions 20312 | -4/Proximity Caves | Learned Research interactive machine intel 20546 | -4/Proximity Caves | Discovered new exit (range 15) 20611 | -4/Proximity Caves | Entered Factory 20611 | -4/Factory | Evolved 2 slots: Utility x2 20827 | -4/Factory | Repaired Broken Centrium Heavy Treads 21259 | -4/Factory | Lost 3 parts (1n1u1w) 21501 | -4/Factory | Lost 3 parts (1n2u) 21563 | -4/Factory | Lost 4 parts (1n2u1w) 22132 | -4/Factory | Discovered new exit (range 16) 22401 | -4/Factory | Lost 3 parts (2u1w) 22499 | -4/Factory | Fabricated Cargo Storage Unit (x1) 22508 | -4/Factory | Terminal network hard line cut 22885 | -4/Factory | Entered Upper Caves 23504 | -4/Upper Caves | Attracted the attention of an 0b10 checkpoint 23900 | -4/Upper Caves | Discovered new exit (range 11) 23951 | -4/Upper Caves | Entered another Upper Caves area 24037 | -4/Upper Caves | Discovered new exit (range 28) 24554 | -4/Upper Caves | Discovered new exit (range 10) 24572 | -4/Upper Caves | Entered Warlord 24658 | -4/Warlord | System corruption cleaned by Quarantine Array 24802 | -4/Warlord | Received a Watcher feed algorithm from an ecstatic Tinkerer 25423 | -4/Warlord | Rebuked by Warlord 25448 | -4/Warlord | Warlord's base attacked by MAIN.C 25710 | -4/Warlord | Warlord forces counterattacked 25760 | -4/Warlord | Spotted B-90 Cyclops 25760 | -4/Warlord | Spotted B-86 Titan 25763 | -4/Warlord | Spotted B-90 Cyclops 25782 | -4/Warlord | Spotted Executioner 25784 | -4/Warlord | Discovered new exit (range 9) 25800 | -4/Warlord | Entered Proximity Caves 25813 | -3/Proximity Caves | Lost 4 parts (3u1w) 26539 | -3/Proximity Caves | Discovered new exit (range 9) 26561 | -3/Proximity Caves | Entered Research 26561 | -3/Research | Evolved 2 slots: Utility x2 26562 | -3/Research | Identified exit to Armory 26563 | -3/Research | Loaded intel: 50 trap records 26564 | -3/Research | Loaded intel: 41 interactive machine locations 26972 | -3/Research | Garrison activated, responded to threat 27003 | -3/Research | Lost 5 parts (1n1u3w) 27078 | -3/Research | Lost 7 parts (1p3n2u1w) 27252 | -3/Research | Identified Transdimensional Reconstructor 27252 | -3/Research | Warped through subspace 27276 | -3/Research | Lost 6 parts (1p1n4w) 27504 | -3/Research | Core integrity fell below 50% 27518 | -3/Research | Identified Molecular Deconstructor 27552 | -3/Research | Lost 3 parts (1p2u) 27677 | -3/Research | Core integrity fell below 20% 27684 | -3/Research | Released all parts (2) 27707 | -3/Research | Lost 3 parts (1p1u1w) 27716 | -3/Research | Spotted B-86 Titan 27740 | -3/Research | Zion Heavy squad teleported in 27746 | -3/Research | Destroyed by H-77 Assassin with High-powered Shotgun Last Messages --------------- 27738_ Slug penetrates Wall. 27739_ Connecting with Terminal... 27739_ Feedback overwhelming sensors... 27739_ Connecting with Terminal... >>\\ZION-ROSTER [ Establishing connection... ] [ Retrieving roster... ] [ Squads on standby: ] [ 1 : YD-SH6(p)/Hacker(3) ] [ 2 : KY-921(Z)/Heavy(2) ] [ 3 : B0-TYJ(i)/Fire(3) ] [ 4 : Resource Resupply ] [ 5 : Offense Resupply ] >>\\ZION-DISPATCH-2 [ Target locked, reinforcements inbound... ] 27740_ KY-921(Z): "We'll draw their fire." 27740_ Subsystem restored. 27743_ Slug penetrates Wall. 27746_ Penetrated by Slug. 27746_ Slug penetrates Wall. Map ----- +----------------------------------------------------+ | ! % #"Y ???????????????? | | #"" ???????????????? | | #"" ??????????????? | | ^^ """ """ #?? ??????????????? | | % """ """ #??? ?????????????? | | """ """ #???###?????????????? | | % " T" F" #???????????????????? | | """" % """ #???????????????????? | | "" #???????????????????? | | """ #???????????????????? | | """ #???????????????????? | | ########### """ #???????????????????? | | ???????# # #???????????????????? | | ????????### ! #???????????????????? | | ????????? #???????????????????? | | ???????? """ """ #???????????????????? | | ???????? """ """ #???????????????????? | | ??????? """ """ #???????????????????? | | ?????? h #???????????????????? | | ?????? h k #??????#????????????? | | ??????? #???? #????????????? | | ????????? #?? #????????????? | | ?????????? # = #????????????? | | ????????????? + #????????????? | | ?????????????? ### # #????????????? | | ???????????????##########@##+#?? #????????????? | | ???????????????# Z #???? #????????????? | | ???????????????# Z #??????#????????????? | | ???????????????# ! #???????????????????? | | ???????????????# #???????????????????? | | ???????????????# #???????????????????? | | ???????????????# #???????????????????? | | ???????????????###"" ""#####???????????????????? | | ?????????????????#"" ""#???????????????????????? | | ?????????????????#########???????????????????????? | | ?????????????????????????????????????????????????? | | ?????????????????????????????????????????????????? | | ?????????????????????????????????????????????????? | | ?????????????????????????????????????????????????? | | ?????????????????????????????????????????????????? | | ?????????????????????????????????????????????????? | | ?????????????????????????????????????????????????? | | ?????????????????????????????????????????????????? | | ?????????????????????????????????????????????????? | | ?????????????????????????????????????????????????? | | ?????????????????????????????????????????????????? | | ?????????????????????????????????????????????????? | | ?????????????????????????????????????????????????? | | ?????????????????????????????????????????????????? | | ?????????????????????????????????????????????????? | +----------------------------------------------------+ Best States ------------- Heat Dissipation 85 Energy Generation 70 Energy Capacity 800 Matter Stores 450 Matter Capacity 450 Sight Range 16 Robot Scan Range 16 Terrain Scan Density 1010 Power Amplification 30 Additional Mass Support 16 Armor Coverage 1200 Resistance: KI 50 Resistance: TH 20 Resistance: EX 20 Resistance: EM 20 Resistance: I 20 Resistance: S 20 Resistance: P 20 Core Shielding 40 Utility Shielding 66 Weapon Shielding 100 Evasion (%) 50 Targeting Accuracy 16 Launcher Accuracy 20 Armor Integrity Analysis 45 Recoil Reduction 4 Particle Charging 30 Salvage Targeting 4 Offensive Hacking 26 Item Schematics ----------------- Huge Storage Unit | -10/Materials | Hacked Cargo Storage Unit | -10/Materials | Hacked Med. Storage Unit | -10/Materials | Hacked Sml. Storage Unit | -10/Materials | Hacked Hcp. Storage Unit | -8/Materials | Scanalyzed Lrg. Storage Unit | -8/Materials | Scanalyzed Rocket Launcher | -8/Materials | Scanalyzed Hvy. Riot Gun | -7/Zion | Free Barrage Gun | -7/Zion | Free Battle Cannon | -7/Zion | Free Enh. Flamer | -7/Zion | Free Plasma Flamer | -7/Zion | Free Ripper | -7/Zion | Free Power Amplifier | -6/Extension | Z-intel Hvy. Laser | -6/Extension | Z-intel Hvy. Flak Cannon | -6/Extension | Z-intel Core Analyzer | -6/Extension | Z-intel Nuclear Core | -6/Extension | Z-intel Proton Missile Launcher | -6/Extension | Z-intel Imp. Thermal Generator | -6/Extension | Z-intel Imp. Heavy Armor Plating | -6/Extension | Z-intel Adv. Terrain Scan Processor | -6/Extension | Z-intel Imp. Particle Charger | -6/Extension | Z-intel Great Axe | -6/Extension | Z-intel Imp. Melee Analysis Suite | -6/Extension | Z-intel Nuclear Pulse Thruster | -6/Extension | Z-intel Force Rifle | -6/Extension | Z-intel Flak Gun | -6/Extension | Z-intel Energy Filter | -6/Extension | Z-intel Prc. Shock Rifle | -6/Extension | Z-intel Cld. Plasma Cannon | -6/Extension | Z-intel Rocket Array | -6/Extension | Z-intel Cold Fusion Reactor | -6/Extension | Z-intel Antimatter Cannon | -6/Extension | Z-intel Cld. Cesium-ion Thruster | -6/Extension | Z-intel Imp. Airjet | -6/Extension | Z-intel F-cell Engine | -6/Extension | Z-intel Exp. Utility Shielding | -6/Extension | Z-intel Assault Drone Bay | -5/Zhirov | Free Exp. Heat Sink | -5/Zhirov | Free Exp. Optical Array | -5/Zhirov | Free Imp. Arc Thrower | -5/Zhirov | Free Robot Schematics ------------------ B-48 Gladiator | -6/Extension | Z-intel R-10 Processor | -6/Extension | Z-intel T-07 Excavator | -6/Extension | Z-intel Fabricated ------------ Cargo Storage Unit | x1 | -7/Factory Rocket Launcher | x1 | -7/Factory Cargo Storage Unit | x1 | -4/Factory Alien Tech Used ----------------- Integrated Dissipator Transdimensional Reconstructor Achievements -------------- None Challenges ------------ None Game ------ Seed ContainmentDerelictBay Manual? 0 Play Time 02:52:35 Cumulative 289.1 hours Start 2021.02.27 @ 13:32:52 End 2021.02.28 @ 07:39:32 Sessions 7 Manual Loads 0 Difficulty Adventurer Special Mode None Game No. 285 Rogue 132 Adventurer 75 Explorer 78 Win Type - Total 22 Types 16/0/4/2/0/0/0/0/0 Lore% 78 Gallery% 86 Achievement% 67 Wizard Run 0 Options --------- ASCII 0 Keyboard 0 Movement Numpad Keybinds 0 Fullscreen 2 Font 18/TerminusBold Map View 76x50 Tactical HUD 1 Map Filters NONE Filters NONE Steam 1 RUN: 8350652b-0273-431e-bfe0-367cb923e921